[Event "*** Titled Tuesday Blitz"]
[Site "Chess.com"]
[Date "2019.07.02"]
[Round "9"]
[White "marianokar"]
[Black "ckgchess"]
[Result "0-1"]
[WhiteElo "2465"]
[BlackElo "2726"]
[TimeControl "180+2"]
[EndTime "15:01:49 PDT"]
[Termination "ckgchess won by resignation"]

1. c4 {[%clk 0:03:01.9]} 1... g6 {[%clk 0:03:00.3]} 2. g3 {[%clk 0:03:00.5]}
2... Bg7 {[%clk 0:03:01.5]} 3. Bg2 {[%clk 0:03:01.6]} 3... e5 {[%clk 0:03:02.5]}
4. d3 {[%clk 0:02:59.1]} 4... Ne7 {[%clk 0:03:01.5]} 5. Nc3 {[%clk 0:03:00.5]}
5... Nbc6 {[%clk 0:02:57.5]} 6. e3 {[%clk 0:02:59.3]} 6... O-O {[%clk
0:02:56.4]} 7. Nge2 {[%clk 0:03:00.8]} 7... d6 {[%clk 0:02:55.2]} 8. O-O {[%clk
0:03:02]} 8... Be6 {[%clk 0:02:38.1]} 9. Nd5 {[%clk 0:03:01.4]} 9... Qd7 {[%clk
0:02:32.1]} 10. Rb1 {[%clk 0:02:59.3]} 10... a5 {[%clk 0:02:32.9]} 11. b3 {[%clk
0:02:58]} 11... Bxd5 {[%clk 0:02:25.3]} 12. cxd5 {[%clk 0:02:55.4]} 12... Nb4
{[%clk 0:02:26.5]} 13. Nc3 {[%clk 0:02:56]} 13... e4 {[%clk 0:02:15.4]} 14. Nxe4
{[%clk 0:02:55.4]} 14... Nxa2 {[%clk 0:02:16.3]} 15. Bb2 {[%clk 0:02:27.2]}
15... f6 {[%clk 0:02:17.2]} 16. Ra1 {[%clk 0:02:18.8]} 16... Nb4 {[%clk
0:02:17.9]} 17. Nc3 {[%clk 0:02:20.3]} 17... f5 {[%clk 0:02:10.3]} 18. Qd2
{[%clk 0:02:18.4]} 18... h6 {[%clk 0:01:59.5]} 19. f4 {[%clk 0:02:12.1]} 19...
b6 {[%clk 0:01:58.2]} 20. e4 {[%clk 0:02:08]} 20... Rae8 {[%clk 0:01:55.8]} 21.
Rae1 {[%clk 0:02:06.7]} 21... Kh7 {[%clk 0:01:56.5]} 22. h3 {[%clk 0:02:03.2]}
22... c6 {[%clk 0:01:53.2]} 23. dxc6 {[%clk 0:01:54.8]} 23... Nexc6 {[%clk
0:01:55.1]} 24. exf5 {[%clk 0:01:55]} 24... Qxf5 {[%clk 0:01:56.6]} 25. Ne4
{[%clk 0:01:51.8]} 25... Bxb2 {[%clk 0:01:53.6]} 26. Qxb2 {[%clk 0:01:45.4]}
26... Nxd3 {[%clk 0:01:53.9]} 27. Qc3 {[%clk 0:01:20.6]} 27... Nxe1 {[%clk
0:01:53.7]} 28. Nxd6 {[%clk 0:01:21.5]} 28... Qc5+ {[%clk 0:00:49]} 29. Qxc5
{[%clk 0:01:20.5]} 29... bxc5 {[%clk 0:00:50.9]} 30. Bxc6 {[%clk 0:00:47.7]}
30... Re6 {[%clk 0:00:51.6]} 31. Nc4 {[%clk 0:00:25.2]} 31... Rxc6 {[%clk
0:00:48.7]} 32. Rxe1 {[%clk 0:00:26.1]} 32... Rc7 {[%clk 0:00:43.1]} 33. Nxa5
{[%clk 0:00:26]} 33... Rb8 {[%clk 0:00:36.2]} 34. Re6 {[%clk 0:00:22.7]} 34...
Rb5 {[%clk 0:00:35.2]} 35. Ra6 {[%clk 0:00:22.1]} 35... Rd7 {[%clk 0:00:33.8]}
36. Kf2 {[%clk 0:00:21.3]} 36... Rb8 {[%clk 0:00:28.8]} 37. Rc6 {[%clk
0:00:16.8]} 37... Rb5 {[%clk 0:00:28.3]} 38. Ra6 {[%clk 0:00:17.8]} 38... h5
{[%clk 0:00:29.7]} 39. g4 {[%clk 0:00:17.6]} 39... hxg4 {[%clk 0:00:29.5]} 40.
hxg4 {[%clk 0:00:18.4]} 40... Rb4 {[%clk 0:00:31.4]} 41. Kg3 {[%clk 0:00:18.4]}
41... Rd3+ {[%clk 0:00:31]} 42. Kh4 {[%clk 0:00:19.4]} 42... Rxf4 {[%clk
0:00:32]} 43. Kg5 {[%clk 0:00:20.5]} 43... Rf7 {[%clk 0:00:31]} 44. Rxg6 {[%clk
0:00:19.6]} 44... Rd5+ {[%clk 0:00:31.9]} 45. Kh4 {[%clk 0:00:19.9]} 45... Kxg6
{[%clk 0:00:33.8]} 0-1

[Event "*** Titled Tuesday Blitz"]
[Site "Chess.com"]
[Date "2019.07.02"]
[Round "9"]
[White "xdb"]
[Black "Everyfishknows"]
[Result "1-0"]
[WhiteElo "2258"]
[BlackElo "2276"]
[TimeControl "180+2"]
[EndTime "15:01:55 PDT"]
[Termination "xdb won on time"]

1. d4 {[%clk 0:03:00.6]} 1... Nf6 {[%clk 0:03:00.5]} 2. c4 {[%clk 0:03:02]} 2...
e6 {[%clk 0:02:56]} 3. Nc3 {[%clk 0:03:02.9]} 3... Bb4 {[%clk 0:02:56.6]} 4. a3
{[%clk 0:03:04.4]} 4... Bxc3+ {[%clk 0:02:57]} 5. bxc3 {[%clk 0:03:06.3]} 5...
O-O {[%clk 0:02:57.3]} 6. f3 {[%clk 0:03:06.9]} 6... d5 {[%clk 0:02:57.6]} 7. e3
{[%clk 0:03:06.9]} 7... c5 {[%clk 0:02:56.5]} 8. cxd5 {[%clk 0:03:08.1]} 8...
exd5 {[%clk 0:02:57.2]} 9. Bd3 {[%clk 0:03:09.5]} 9... b6 {[%clk 0:02:57.8]} 10.
Ne2 {[%clk 0:03:10.7]} 10... Ba6 {[%clk 0:02:58.9]} 11. O-O {[%clk 0:03:11.1]}
11... Bxd3 {[%clk 0:02:59.4]} 12. Qxd3 {[%clk 0:03:13]} 12... Nc6 {[%clk
0:02:59.2]} 13. Ng3 {[%clk 0:03:07.9]} 13... Re8 {[%clk 0:02:58.7]} 14. Bb2
{[%clk 0:03:04.8]} 14... cxd4 {[%clk 0:02:30.2]} 15. cxd4 {[%clk 0:03:04.8]}
15... h5 {[%clk 0:02:31.6]} 16. Rae1 {[%clk 0:02:32.3]} 16... h4 {[%clk
0:02:32.5]} 17. Nh1 {[%clk 0:02:32.9]} 17... h3 {[%clk 0:02:17.3]} 18. g4 {[%clk
0:02:26.3]} 18... Na5 {[%clk 0:01:45.9]} 19. Nf2 {[%clk 0:02:25.4]} 19... Nc4
{[%clk 0:01:46.6]} 20. Bc1 {[%clk 0:02:26.4]} 20... Nh7 {[%clk 0:01:20.3]} 21.
Nxh3 {[%clk 0:02:26.2]} 21... Qh4 {[%clk 0:01:21.4]} 22. Nf4 {[%clk 0:02:24.3]}
22... Ng5 {[%clk 0:01:10.2]} 23. Nxd5 {[%clk 0:02:12.2]} 23... Nxf3+ {[%clk
0:01:09.6]} 24. Rxf3 {[%clk 0:02:13.7]} 24... Qxe1+ {[%clk 0:01:10.7]} 25. Rf1
{[%clk 0:02:15.3]} 25... Qh4 {[%clk 0:00:44.7]} 26. Qxc4 {[%clk 0:02:15.5]}
26... Qxg4+ {[%clk 0:00:43.2]} 27. Kf2 {[%clk 0:02:13.5]} 27... Rac8 {[%clk
0:00:41.8]} 28. Qe2 {[%clk 0:02:06.8]} 28... Qf5+ {[%clk 0:00:30.3]} 29. Nf4
{[%clk 0:01:48.5]} 29... Rc2 {[%clk 0:00:30.7]} 30. Bd2 {[%clk 0:01:50.1]} 30...
Rec8 {[%clk 0:00:31.9]} 31. Kg1 {[%clk 0:01:28.9]} 31... Qe4 {[%clk 0:00:20.6]}
32. Qg4 {[%clk 0:01:17.8]} 32... f5 {[%clk 0:00:18]} 33. Qd1 {[%clk 0:01:12.7]}
33... g5 {[%clk 0:00:14]} 34. Nh5 {[%clk 0:01:10.6]} 34... Kh8 {[%clk
0:00:05.4]} 35. Ng3 {[%clk 0:01:10.3]} 35... Qd5 {[%clk 0:00:03.8]} 36. Qh5+
{[%clk 0:01:10.6]} 36... Kg8 {[%clk 0:00:03.6]} 37. Qxg5+ {[%clk 0:01:12.2]}
37... Kh8 {[%clk 0:00:05.1]} 38. Qh6+ {[%clk 0:01:01.8]} 38... Kg8 {[%clk
0:00:06.1]} 39. Qg6+ {[%clk 0:01:00.2]} 39... Kh8 {[%clk 0:00:06.9]} 40. Rxf5
{[%clk 0:00:59.7]} 40... Rc1+ {[%clk 0:00:07.4]} 41. Bxc1 {[%clk 0:00:59.8]}
41... Rxc1+ {[%clk 0:00:09.3]} 42. Rf1 {[%clk 0:00:59.9]} 42... Rc8 {[%clk
0:00:08.3]} 43. Qh6+ {[%clk 0:00:50.6]} 43... Kg8 {[%clk 0:00:09.3]} 44. Nf5
{[%clk 0:00:50.9]} 44... Rc7 {[%clk 0:00:07.2]} 45. Qg5+ {[%clk 0:00:43.7]}
45... Kh8 {[%clk 0:00:07.4]} 46. Qh5+ {[%clk 0:00:44.2]} 46... Kg8 {[%clk
0:00:04.2]} 47. Nh6+ {[%clk 0:00:45.2]} 47... Kh8 {[%clk 0:00:03.3]} 48. Qxd5
{[%clk 0:00:46.4]} 1-0

[Event "*** Titled Tuesday Blitz"]
[Site "Chess.com"]
[Date "2019.07.02"]
[Round "9"]
[White "Etoilegeniale"]
[Black "ElGasanov"]
[Result "1/2-1/2"]
[WhiteElo "2520"]
[BlackElo "2729"]
[TimeControl "180+2"]
[EndTime "15:02:12 PDT"]
[Termination "Game drawn by repetition"]

1. e4 {[%clk 0:03:01.9]} 1... d5 {[%clk 0:02:59]} 2. exd5 {[%clk 0:03:02.4]}
2... Qxd5 {[%clk 0:03:00]} 3. Nc3 {[%clk 0:03:03.5]} 3... Qd6 {[%clk 0:03:01.6]}
4. d4 {[%clk 0:03:04.3]} 4... Nf6 {[%clk 0:03:02.7]} 5. Nf3 {[%clk 0:03:05.3]}
5... c6 {[%clk 0:03:04.1]} 6. h3 {[%clk 0:03:06.1]} 6... Bf5 {[%clk 0:03:03.8]}
7. Bd3 {[%clk 0:03:07.1]} 7... Bxd3 {[%clk 0:03:01]} 8. Qxd3 {[%clk 0:03:08.1]}
8... e6 {[%clk 0:03:02.3]} 9. O-O {[%clk 0:03:08.9]} 9... Nbd7 {[%clk 0:03:01]}
10. Ne4 {[%clk 0:03:09.6]} 10... Nxe4 {[%clk 0:02:58.4]} 11. Qxe4 {[%clk
0:03:10.5]} 11... Be7 {[%clk 0:02:54.4]} 12. c4 {[%clk 0:03:10.1]} 12... Nf6
{[%clk 0:02:53]} 13. Qe2 {[%clk 0:03:09.9]} 13... O-O {[%clk 0:02:53.1]} 14. Bg5
{[%clk 0:03:07.8]} 14... Rfe8 {[%clk 0:02:51]} 15. Rad1 {[%clk 0:03:08]} 15...
Rad8 {[%clk 0:02:49.5]} 16. Rfe1 {[%clk 0:03:08.5]} 16... h6 {[%clk 0:02:49.4]}
17. Be3 {[%clk 0:03:03.6]} 17... Qc7 {[%clk 0:02:42.6]} 18. b3 {[%clk 0:02:59]}
18... Bb4 {[%clk 0:02:38.1]} 19. Bd2 {[%clk 0:02:59.1]} 19... Bxd2 {[%clk
0:02:33.2]} 20. Rxd2 {[%clk 0:02:59.7]} 20... Rd6 {[%clk 0:02:29.7]} 21. Red1
{[%clk 0:02:56.2]} 21... Red8 {[%clk 0:02:30.3]} 22. Qe5 {[%clk 0:02:45.8]}
22... R8d7 {[%clk 0:02:14.8]} 23. Qe2 {[%clk 0:02:44.2]} 23... Qd8 {[%clk
0:02:12.7]} 24. Ne5 {[%clk 0:02:36]} 24... Re7 {[%clk 0:02:06.3]} 25. Rd3 {[%clk
0:02:31.3]} 25... Qa5 {[%clk 0:02:03]} 26. Rg3 {[%clk 0:02:16.3]} 26... Rd8
{[%clk 0:01:55.3]} 27. Qf3 {[%clk 0:02:01]} 27... Kf8 {[%clk 0:01:55]} 28. Qe2
{[%clk 0:01:54]} 28... Qb6 {[%clk 0:01:41]} 29. Rgd3 {[%clk 0:01:52.4]} 29...
Kg8 {[%clk 0:01:37.5]} 30. g3 {[%clk 0:01:44.7]} 30... Ree8 {[%clk 0:01:35.9]}
31. h4 {[%clk 0:01:44.4]} 31... Qc7 {[%clk 0:01:30.5]} 32. Kg2 {[%clk 0:01:42]}
32... Nd7 {[%clk 0:01:25.1]} 33. f4 {[%clk 0:01:38.4]} 33... b5 {[%clk
0:01:15.2]} 34. Qe4 {[%clk 0:01:16.3]} 34... bxc4 {[%clk 0:01:04.2]} 35. bxc4
{[%clk 0:01:16.2]} 35... Rc8 {[%clk 0:00:58.3]} 36. g4 {[%clk 0:00:59.1]} 36...
Nf8 {[%clk 0:00:46.6]} 37. g5 {[%clk 0:00:57.4]} 37... h5 {[%clk 0:00:48]} 38.
Rb3 {[%clk 0:00:41.7]} 38... Red8 {[%clk 0:00:40.6]} 39. Rdb1 {[%clk 0:00:38]}
39... Qa5 {[%clk 0:00:37]} 40. Rb7 {[%clk 0:00:34.8]} 40... Qd2+ {[%clk
0:00:33.7]} 41. Kf3 {[%clk 0:00:30.2]} 41... Rxd4 {[%clk 0:00:34.7]} 42. Qe3
{[%clk 0:00:29.1]} 42... Rcd8 {[%clk 0:00:22.3]} 43. Qxd2 {[%clk 0:00:29]} 43...
Rxd2 {[%clk 0:00:23.5]} 44. Rxf7 {[%clk 0:00:29.5]} 44... Ng6 {[%clk 0:00:21.8]}
45. Rbb7 {[%clk 0:00:25.9]} 45... Nxe5+ {[%clk 0:00:15.2]} 46. fxe5 {[%clk
0:00:26.9]} 46... R8d3+ {[%clk 0:00:16.1]} 47. Ke4 {[%clk 0:00:28]} 47... Rd4+
{[%clk 0:00:16.9]} 48. Ke3 {[%clk 0:00:28.4]} 48... R4d3+ {[%clk 0:00:17.8]} 49.
Ke4 {[%clk 0:00:29.4]} 49... Rd4+ {[%clk 0:00:16.7]} 50. Ke3 {[%clk 0:00:30.6]}
50... R4d3+ {[%clk 0:00:12.9]} 51. Ke4 {[%clk 0:00:31.6]} 1/2-1/2

[Event "*** Titled Tuesday Blitz"]
[Site "Chess.com"]
[Date "2019.07.02"]
[Round "9"]
[White "Mbneu"]
[Black "narutosmith"]
[Result "1-0"]
[WhiteElo "2336"]
[BlackElo "2212"]
[TimeControl "180+2"]
[EndTime "15:02:38 PDT"]
[Termination "Mbneu won by checkmate"]

1. d4 {[%clk 0:03:01.9]} 1... Nf6 {[%clk 0:03:00.2]} 2. c4 {[%clk 0:03:02.2]}
2... e6 {[%clk 0:03:01.3]} 3. Nc3 {[%clk 0:03:02]} 3... Bb4 {[%clk 0:03:02.4]}
4. Bg5 {[%clk 0:03:03.4]} 4... c5 {[%clk 0:02:53.1]} 5. d5 {[%clk 0:03:03.1]}
5... h6 {[%clk 0:02:52.4]} 6. Bh4 {[%clk 0:03:03.5]} 6... g5 {[%clk 0:02:44.4]}
7. Bg3 {[%clk 0:03:03.5]} 7... Ne4 {[%clk 0:02:43.3]} 8. Qd3 {[%clk 0:03:01.2]}
8... Qa5 {[%clk 0:02:35.4]} 9. Be5 {[%clk 0:02:59]} 9... f6 {[%clk 0:02:09.7]}
10. Qxe4 {[%clk 0:02:57.6]} 10... fxe5 {[%clk 0:02:10.9]} 11. Qg6+ {[%clk
0:02:17.5]} 11... Kf8 {[%clk 0:02:00.4]} 12. Qf6+ {[%clk 0:02:14.6]} 12... Kg8
{[%clk 0:02:01.3]} 13. Qxe5 {[%clk 0:02:13.2]} 13... Bxc3+ {[%clk 0:01:44.8]}
14. Qxc3 {[%clk 0:02:11]} 14... Qxc3+ {[%clk 0:01:44.9]} 15. bxc3 {[%clk
0:02:12.2]} 15... e5 {[%clk 0:01:40.5]} 16. e3 {[%clk 0:02:10.6]} 16... d6
{[%clk 0:01:39.6]} 17. Bd3 {[%clk 0:02:10.8]} 17... Nd7 {[%clk 0:01:31.3]} 18.
Nf3 {[%clk 0:02:09.6]} 18... Nf6 {[%clk 0:01:31]} 19. Nd2 {[%clk 0:02:10.6]}
19... Kg7 {[%clk 0:01:27.8]} 20. O-O {[%clk 0:02:09.8]} 20... Bg4 {[%clk
0:01:05]} 21. f4 {[%clk 0:02:04.2]} 21... gxf4 {[%clk 0:00:50.3]} 22. exf4
{[%clk 0:02:03.9]} 22... Rae8 {[%clk 0:00:50.4]} 23. h3 {[%clk 0:01:57.7]} 23...
Bd7 {[%clk 0:00:44]} 24. fxe5 {[%clk 0:01:38.9]} 24... Rxe5 {[%clk 0:00:44.5]}
25. Rae1 {[%clk 0:01:29.8]} 25... Rhe8 {[%clk 0:00:40.6]} 26. Nf3 {[%clk
0:01:29.1]} 26... Re3 {[%clk 0:00:32.2]} 27. Rxe3 {[%clk 0:01:22.8]} 27... Rxe3
{[%clk 0:00:32.4]} 28. Rd1 {[%clk 0:01:24]} 28... Ne4 {[%clk 0:00:07.1]} 29.
Bxe4 {[%clk 0:01:12.9]} 29... Rxe4 {[%clk 0:00:09]} 30. Re1 {[%clk 0:01:12.9]}
30... Rxe1+ {[%clk 0:00:06.3]} 31. Nxe1 {[%clk 0:01:13.1]} 31... Bf5 {[%clk
0:00:07.6]} 32. Nf3 {[%clk 0:01:05]} 32... Bd3 {[%clk 0:00:07.5]} 33. Nd2 {[%clk
0:01:05.5]} 33... Kf6 {[%clk 0:00:08.3]} 34. Kf2 {[%clk 0:01:06.2]} 34... Ke5
{[%clk 0:00:07.2]} 35. Ke3 {[%clk 0:01:07.7]} 35... Bc2 {[%clk 0:00:07.7]} 36.
Nf3+ {[%clk 0:01:08]} 36... Kf5 {[%clk 0:00:06.2]} 37. g4+ {[%clk 0:01:08.5]}
37... Kf6 {[%clk 0:00:05.8]} 38. Kf4 {[%clk 0:01:09.8]} 38... Bd3 {[%clk
0:00:05.6]} 39. Nd2 {[%clk 0:01:10.9]} 39... b6 {[%clk 0:00:04.7]} 40. h4 {[%clk
0:01:10.9]} 40... a6 {[%clk 0:00:03.6]} 41. Ne4+ {[%clk 0:01:05]} 41... Ke7
{[%clk 0:00:03.8]} 42. Nd2 {[%clk 0:01:05.3]} 42... b5 {[%clk 0:00:04.2]} 43.
cxb5 {[%clk 0:01:05.8]} 43... axb5 {[%clk 0:00:05.5]} 44. a3 {[%clk 0:01:07.2]}
44... c4 {[%clk 0:00:05]} 45. Ne4 {[%clk 0:01:05.8]} 45... Bc2 {[%clk
0:00:03.5]} 46. g5 {[%clk 0:01:02.6]} 46... hxg5+ {[%clk 0:00:04.2]} 47. hxg5
{[%clk 0:01:02.1]} 47... Kd7 {[%clk 0:00:03.6]} 48. g6 {[%clk 0:01:01.5]} 48...
Ke7 {[%clk 0:00:04.3]} 49. g7 {[%clk 0:00:59.9]} 49... Kf7 {[%clk 0:00:04]} 50.
Nxd6+ {[%clk 0:01:01.1]} 50... Kxg7 {[%clk 0:00:05.1]} 51. Nxb5 {[%clk
0:01:02.6]} 51... Kf7 {[%clk 0:00:03.6]} 52. Ke5 {[%clk 0:01:03.8]} 52... Bb3
{[%clk 0:00:03.7]} 53. Kd6 {[%clk 0:01:02.7]} 53... Ke8 {[%clk 0:00:04.5]} 54.
Kc5 {[%clk 0:01:04]} 54... Kd7 {[%clk 0:00:04.9]} 55. Nd6 {[%clk 0:01:05.4]}
55... Ba4 {[%clk 0:00:04.9]} 56. Nxc4 {[%clk 0:01:06]} 56... Bb3 {[%clk
0:00:06.1]} 57. Ne5+ {[%clk 0:01:06.4]} 57... Kc7 {[%clk 0:00:06.1]} 58. d6+
{[%clk 0:01:07.7]} 58... Kd8 {[%clk 0:00:06.8]} 59. c4 {[%clk 0:01:08.1]} 59...
Ba4 {[%clk 0:00:07.3]} 60. Kb6 {[%clk 0:01:07.7]} 60... Kc8 {[%clk 0:00:06.9]}
61. c5 {[%clk 0:01:09]} 61... Kb8 {[%clk 0:00:06]} 62. c6 {[%clk 0:01:10]} 62...
Ka8 {[%clk 0:00:04.5]} 63. d7 {[%clk 0:01:10.2]} 63... Bxc6 {[%clk 0:00:03]} 64.
d8=Q# {[%clk 0:01:10.5]} 1-0

[Event "*** Titled Tuesday Blitz"]
[Site "Chess.com"]
[Date "2019.07.02"]
[Round "9"]
[White "ethylalcohol"]
[Black "FMJoseHerrera"]
[Result "1-0"]
[WhiteElo "2110"]
[BlackElo "2597"]
[TimeControl "180+2"]
[EndTime "15:02:39 PDT"]
[Termination "ethylalcohol won on time"]

1. d4 {[%clk 0:02:57]} 1... Nf6 {[%clk 0:03:00.7]} 2. Nf3 {[%clk 0:02:55.3]}
2... c5 {[%clk 0:03:01.8]} 3. c3 {[%clk 0:02:44.9]} 3... g6 {[%clk 0:03:02.6]}
4. Bf4 {[%clk 0:02:43.9]} 4... Bg7 {[%clk 0:03:04.5]} 5. e3 {[%clk 0:02:44.7]}
5... O-O {[%clk 0:03:05.8]} 6. Bd3 {[%clk 0:02:34.4]} 6... d6 {[%clk 0:03:05.3]}
7. h3 {[%clk 0:02:32.4]} 7... Re8 {[%clk 0:03:02.8]} 8. O-O {[%clk 0:02:27.3]}
8... Nc6 {[%clk 0:02:56.6]} 9. Nbd2 {[%clk 0:02:19.3]} 9... e5 {[%clk 0:02:55]}
10. Bg5 {[%clk 0:02:07.8]} 10... cxd4 {[%clk 0:02:53.6]} 11. exd4 {[%clk
0:02:01.8]} 11... Be6 {[%clk 0:02:28.6]} 12. Ne4 {[%clk 0:01:48.6]} 12... d5
{[%clk 0:02:12]} 13. Nxf6+ {[%clk 0:01:31.7]} 13... Bxf6 {[%clk 0:02:13.9]} 14.
Bxf6 {[%clk 0:01:32]} 14... Qxf6 {[%clk 0:02:15.8]} 15. dxe5 {[%clk 0:01:33.4]}
15... Nxe5 {[%clk 0:02:17.7]} 16. Nxe5 {[%clk 0:01:31.6]} 16... Qxe5 {[%clk
0:02:19.6]} 17. Re1 {[%clk 0:01:32.7]} 17... Qg5 {[%clk 0:02:17.4]} 18. Qf3
{[%clk 0:01:26.1]} 18... Rad8 {[%clk 0:02:16.3]} 19. Rad1 {[%clk 0:01:18.2]}
19... a6 {[%clk 0:02:12.8]} 20. Bc2 {[%clk 0:01:17.6]} 20... Kg7 {[%clk
0:02:11.5]} 21. Bb3 {[%clk 0:01:00.6]} 21... b5 {[%clk 0:02:10]} 22. Re3 {[%clk
0:00:52.6]} 22... Rd7 {[%clk 0:01:43.2]} 23. Rd4 {[%clk 0:00:48.4]} 23... Red8
{[%clk 0:01:41.4]} 24. h4 {[%clk 0:00:43.6]} 24... Qf6 {[%clk 0:01:28.1]} 25.
Rf4 {[%clk 0:00:43.6]} 25... Qe7 {[%clk 0:01:21.3]} 26. Re5 {[%clk 0:00:33.9]}
26... Qd6 {[%clk 0:01:20.9]} 27. Qe3 {[%clk 0:00:30]} 27... Kg8 {[%clk
0:01:16.3]} 28. h5 {[%clk 0:00:29.8]} 28... a5 {[%clk 0:01:09.7]} 29. hxg6
{[%clk 0:00:27.1]} 29... hxg6 {[%clk 0:01:08.9]} 30. Rh4 {[%clk 0:00:27.3]}
30... Bf5 {[%clk 0:00:56.6]} 31. Re8+ {[%clk 0:00:17.6]} 31... Kg7 {[%clk
0:00:16.3]} 32. Qh6+ {[%clk 0:00:17.9]} 32... Kf6 {[%clk 0:00:17.7]} 33. Qh8+
{[%clk 0:00:16.4]} 33... Kg5 {[%clk 0:00:19.1]} 34. f4+ {[%clk 0:00:15.8]} 34...
Qxf4 {[%clk 0:00:17.9]} 35. Qh6+ {[%clk 0:00:15.2]} 35... Kf6 {[%clk 0:00:18.4]}
36. Rxf4 {[%clk 0:00:15.5]} 36... Rxe8 {[%clk 0:00:19.5]} 37. g4 {[%clk
0:00:15]} 37... Rde7 {[%clk 0:00:16.6]} 38. Rxf5+ {[%clk 0:00:15.2]} 38... Ke6
{[%clk 0:00:15.7]} 39. Rxd5 {[%clk 0:00:16.2]} 39... Kf6 {[%clk 0:00:15.4]} 40.
g5+ {[%clk 0:00:15.2]} 40... Ke6 {[%clk 0:00:15.7]} 41. Rxb5+ {[%clk 0:00:16]}
41... Kd6 {[%clk 0:00:16.7]} 42. Rd5+ {[%clk 0:00:15]} 42... Kc6 {[%clk
0:00:18]} 43. Rd1 {[%clk 0:00:13.3]} 43... Re2 {[%clk 0:00:16.1]} 44. Qh1+
{[%clk 0:00:13.8]} 44... Kb6 {[%clk 0:00:15.1]} 45. Qd5 {[%clk 0:00:13.6]} 45...
R8e5 {[%clk 0:00:13.4]} 46. Qd6+ {[%clk 0:00:14.2]} 46... Kb7 {[%clk 0:00:15]}
47. Bd5+ {[%clk 0:00:14.7]} 47... Kc8 {[%clk 0:00:16]} 48. Qc6+ {[%clk
0:00:15.4]} 48... Kd8 {[%clk 0:00:17.6]} 49. Bxf7+ {[%clk 0:00:16.1]} 49... Ke7
{[%clk 0:00:19.1]} 50. Qf6+ {[%clk 0:00:15.9]} 1-0

[Event "*** Titled Tuesday Blitz"]
[Site "Chess.com"]
[Date "2019.07.02"]
[Round "9"]
[White "AbasovN"]
[Black "JustaTrickstar"]
[Result "0-1"]
[WhiteElo "2881"]
[BlackElo "2880"]
[TimeControl "180+2"]
[EndTime "15:02:43 PDT"]
[Termination "JustaTrickstar won by resignation"]

1. e4 {[%clk 0:03:01.9]} 1... d6 {[%clk 0:03:01.2]} 2. d4 {[%clk 0:03:02.7]}
2... Nf6 {[%clk 0:03:02.8]} 3. Nc3 {[%clk 0:03:04.6]} 3... g6 {[%clk 0:03:04.3]}
4. Nf3 {[%clk 0:03:03.5]} 4... Bg7 {[%clk 0:03:05.4]} 5. Be2 {[%clk 0:03:05.4]}
5... O-O {[%clk 0:03:06.4]} 6. O-O {[%clk 0:03:06.6]} 6... Nc6 {[%clk
0:02:57.4]} 7. a4 {[%clk 0:03:04.6]} 7... Bg4 {[%clk 0:02:56.1]} 8. d5 {[%clk
0:03:05.8]} 8... Nb8 {[%clk 0:02:56.4]} 9. h3 {[%clk 0:03:05]} 9... Bxf3 {[%clk
0:02:57.4]} 10. Bxf3 {[%clk 0:03:06.9]} 10... Nbd7 {[%clk 0:02:50.8]} 11. Be3
{[%clk 0:03:06.7]} 11... Re8 {[%clk 0:02:49.6]} 12. Be2 {[%clk 0:03:07]} 12...
e6 {[%clk 0:02:49.7]} 13. dxe6 {[%clk 0:03:08.2]} 13... Rxe6 {[%clk 0:02:50.4]}
14. Bc4 {[%clk 0:03:05.6]} 14... Re8 {[%clk 0:02:49.5]} 15. f3 {[%clk
0:03:01.5]} 15... Nh5 {[%clk 0:02:45.1]} 16. a5 {[%clk 0:02:53.3]} 16... Ne5
{[%clk 0:02:40.3]} 17. Bb3 {[%clk 0:02:46.2]} 17... a6 {[%clk 0:02:10.2]} 18.
Ne2 {[%clk 0:02:43.8]} 18... Nc6 {[%clk 0:02:09.4]} 19. c3 {[%clk 0:02:43.4]}
19... Qe7 {[%clk 0:02:09.4]} 20. Qd5 {[%clk 0:02:28.6]} 20... Nf6 {[%clk
0:02:03.3]} 21. Qd2 {[%clk 0:02:28.9]} 21... d5 {[%clk 0:01:51.4]} 22. Bxd5
{[%clk 0:02:06.3]} 22... Rad8 {[%clk 0:01:52.3]} 23. c4 {[%clk 0:02:05.9]} 23...
Ne5 {[%clk 0:01:51.5]} 24. Qc2 {[%clk 0:01:27.1]} 24... c6 {[%clk 0:01:51.1]}
25. Bb6 {[%clk 0:01:28.7]} 25... Rc8 {[%clk 0:01:44.1]} 26. Nc3 {[%clk
0:00:56.8]} 26... cxd5 {[%clk 0:01:43.9]} 27. cxd5 {[%clk 0:00:57.1]} 27... Nc4
{[%clk 0:01:41.3]} 28. Bf2 {[%clk 0:00:40.4]} 28... Nd7 {[%clk 0:01:37.8]} 29.
Rac1 {[%clk 0:00:28.2]} 29... Nxa5 {[%clk 0:01:25.6]} 30. Qa4 {[%clk 0:00:29.4]}
30... Nc4 {[%clk 0:01:26]} 31. Qb3 {[%clk 0:00:30.8]} 31... Nd2 {[%clk
0:01:26.4]} 32. Qxb7 {[%clk 0:00:32]} 32... Nxf1 {[%clk 0:01:27.2]} 33. Kxf1
{[%clk 0:00:33.9]} 33... Rb8 {[%clk 0:01:25.9]} 34. Qxa6 {[%clk 0:00:34.9]}
34... Rxb2 {[%clk 0:01:26.8]} 35. d6 {[%clk 0:00:35]} 35... Qg5 {[%clk
0:01:25.9]} 36. Qa1 {[%clk 0:00:27.3]} 36... Qd2 {[%clk 0:01:18.2]} 37. Nd1
{[%clk 0:00:27]} 37... Ra2 {[%clk 0:01:11.5]} 38. Qb1 {[%clk 0:00:27.8]} 38...
Ra1 {[%clk 0:01:09.5]} 39. Qxa1 {[%clk 0:00:29.3]} 39... Bxa1 {[%clk 0:01:10.4]}
40. Rxa1 {[%clk 0:00:31.2]} 40... Qxd6 {[%clk 0:01:10.8]} 41. Ne3 {[%clk
0:00:32.7]} 41... Qd3+ {[%clk 0:01:05.9]} 42. Kg1 {[%clk 0:00:33.9]} 42... f5
{[%clk 0:01:06.8]} 43. Rd1 {[%clk 0:00:34.6]} 43... Qb5 {[%clk 0:01:06]} 44.
exf5 {[%clk 0:00:34.5]} 44... gxf5 {[%clk 0:01:06.5]} 45. Rd5 {[%clk 0:00:35.7]}
45... Qb1+ {[%clk 0:01:07]} 46. Kh2 {[%clk 0:00:37.2]} 46... Ne5 {[%clk
0:01:01.1]} 47. f4 {[%clk 0:00:28]} 47... Nd3 {[%clk 0:00:54.5]} 48. Bg1 {[%clk
0:00:29.4]} 48... Nxf4 {[%clk 0:00:49.1]} 49. Rxf5 {[%clk 0:00:30.7]} 49... Rf8
{[%clk 0:00:42]} 50. Rg5+ {[%clk 0:00:29.1]} 50... Ng6 {[%clk 0:00:43.1]} 51.
Ng4 {[%clk 0:00:27.6]} 51... Rf1 {[%clk 0:00:37.6]} 52. Bd4 {[%clk 0:00:21.3]}
52... Rh1+ {[%clk 0:00:33.9]} 53. Kg3 {[%clk 0:00:22.8]} 53... Qd3+ {[%clk
0:00:35.2]} 54. Be3 {[%clk 0:00:24.5]} 54... Re1 {[%clk 0:00:34.9]} 55. Nh6+
{[%clk 0:00:20.5]} 55... Kh8 {[%clk 0:00:33.1]} 56. Nf5 {[%clk 0:00:18.4]} 56...
Rxe3+ {[%clk 0:00:33.4]} 57. Nxe3 {[%clk 0:00:20.3]} 57... Qxe3+ {[%clk
0:00:34.2]} 0-1